bitfinex/quotes_ETHUSD_20241030
["timestamp","ask_amount","ask_price","bid_price","bid_amount"]
[1730261328738,3.78489,2642.1,2641.9,0.05676399]
[1730261335088,7.56983,2642.1,2641.9,0.05676399]
[1730261335461,3.78489,2642.1,2641.9,0.05676399]
[1730261335650,3.78466,2642.3,2641.9,0.05676399]
[1730261335954,3.78466,2642.3,2642.0,0.7784]
[1730261336466,3.78466,2642.3,2642.0,2.26373519]
[1730261338857,3.78466,2642.3,2642.0,1.48533519]
[1730261339083,3.78473,2642.2,2642.0,1.48533519]
[1730261339251,3.78473,2642.2,2641.9,0.05676399]
[1730261340190,3.78466,2642.3,2641.9,0.05676399]
[1730261340365,3.78483,2642.2,2641.9,0.05676399]
[1730261342789,3.78496,2642.1,2641.9,0.05676399]
[1730261347175,3.78483,2642.2,2641.9,0.05676399]
[1730261347370,3.78451,2642.4,2642.0,2.27113519]
[1730261347592,3.78451,2642.4,2642.0,2.5871861]
[1730261347801,0.39518987,2642.5,2642.2,1.48533519]
[1730261348099,4.17956987,2642.5,2642.2,1.48533519]
[1730261348252,0.39518987,2642.5,2642.2,1.48533519]
[1730261349486,3.78444,2642.4,2642.2,1.48533519]
[1730261350451,0.39518987,2642.5,2642.2,1.48533519]
[1730261350664,4.17950987,2642.5,2642.2,1.48533519]
[1730261350867,3.78446,2642.4,2642.2,1.48533519]
[1730261351652,4.17951987,2642.5,2642.2,1.48533519]
[1730261352877,0.39518987,2642.5,2642.2,1.48533519]
[1730261353077,3.78445,2642.4,2642.2,1.48533519]
[1730261353290,3.78459,2642.3,2642.0,2.27113519]
[1730261353451,3.78458,2642.3,2642.0,1.48533519]
[1730261356291,3.78445,2642.4,2641.9,0.05676399]
[1730261356499,3.78475,2642.2,2641.9,0.05676399]
[1730261357183,3.78459,2642.3,2641.9,0.05676399]
[1730261358703,3.78459,2642.3,2642.0,1.48533519]
[1730261358872,7.56899,2642.4,2642.0,1.48533519]
[1730261359070,3.78445,2642.4,2642.1,0.7858]
[1730261360066,7.569,2642.4,2642.1,0.7858]
[1730261360604,3.78459,2642.3,2642.1,0.7858]
[1730261361305,3.78459,2642.3,2642.0,1.48533519]
[1730261363216,3.78475,2642.2,2641.9,0.84256399]
[1730261364002,7.56955,2642.2,2641.9,0.84256399]
[1730261364177,3.78475,2642.2,2641.9,0.84256399]
[1730261366403,3.78475,2642.2,2641.9,0.05676399]
[1730261366910,7.56957,2642.2,2641.9,0.05676399]
[1730261367093,3.78475,2642.2,2641.9,0.05676399]
[1730261367804,3.78487,2642.1,2641.9,0.05676399]
[1730261368166,3.78475,2642.2,2641.9,0.05676399]
[1730261368771,7.56958,2642.2,2641.9,0.05676399]
[1730261368983,3.7849,2642.1,2641.9,0.05676399]
[1730261371278,5.00458221,2642.3,2641.9,0.05676399]
[1730261371488,3.78477,2642.2,2641.9,0.05676399]
[1730261373420,3.78477,2642.2,2641.9,0.8436674]
[1730261375717,5.00458221,2642.3,2642.0,1.48533519]
[1730261375934,0.39518221,2642.3,2642.2,1.48533519]
[1730261376461,3.7844,2642.5,2642.2,1.48533519]
[1730261377926,3.7844,2642.5,2642.2,2.2722386]
[1730261380535,3.7844,2642.5,2642.2,1.48533519]
[1730261380854,3.7844,2642.5,2642.2,2.2722386]
[1730261381055,3.7844,2642.5,2642.2,1.48533519]
[1730261381355,3.7844,2642.5,2642.2,2.2722386]
[1730261381528,3.7844,2642.5,2642.2,1.48533519]
[1730261383328,3.78415,2642.6,2642.2,2.29145456]
[1730261383532,3.78415,2642.6,2642.2,1.48533519]
[1730261384330,3.78431,2642.5,2642.2,1.48533519]
[1730261387076,3.78483,2642.2,2641.9,1.6621674]
[1730261387360,3.78488,2642.1,2641.9,0.8436674]
[1730261387536,3.78488,2642.1,2641.9,0.05676399]
[1730261388164,0.7928,2641.9,2641.7,0.78690341]
[1730261388371,3.78529,2641.8,2641.6,0.78690341]
[1730261388527,3.78529,2641.8,2641.5,0.78690341]
[1730261389643,3.78529,2641.8,2641.5,2.2722386]
[1730261390535,4.57809,2641.9,2641.5,2.2722386]
[1730261390857,4.57805,2641.9,2641.5,2.2722386]
[1730261391029,3.78525,2641.9,2641.6,0.8185]
[1730261394673,4.57776,2642.1,2641.6,0.8185]
[1730261394870,3.78502,2642.0,2641.7,1.48533519]
[1730261395233,4.57776,2642.1,2641.7,1.48533519]
[1730261395675,3.78496,2642.1,2641.7,1.48533519]
[1730261397669,3.78496,2642.1,2641.6,0.89420137]
[1730261397859,3.78496,2642.1,2641.6,2.96854518]
[1730261398581,3.78501,2642.0,2641.6,2.96854518]
[1730261399340,3.78496,2642.1,2641.6,2.96854518]
[1730261400765,7.56993,2642.1,2641.6,2.96854518]
[1730261401376,3.78496,2642.1,2641.6,2.96854518]
[1730261401678,3.78496,2642.1,2641.7,0.75410286]
[1730261402878,3.78495,2642.1,2641.7,0.75410286]
[1730261403082,7.56989,2642.1,2641.7,0.75410286]
[1730261403380,3.78494,2642.1,2641.7,0.75410286]
[1730261403679,3.78503,2642.0,2641.7,0.75410286]
[1730261404478,3.78494,2642.1,2641.6,2.96854518]
[1730261404479,7.56991,2642.1,2641.6,2.96854518]
[1730261404645,3.78494,2642.1,2641.6,3.04424664]
[1730261405341,3.78494,2642.1,2641.6,2.96854518]
[1730261406989,3.78494,2642.1,2641.6,6.75412518]
[1730261407291,0.39522956,2642.0,2641.6,6.75412518]
[1730261407881,0.39522956,2642.0,2641.6,2.96854518]
[1730261408080,4.18025956,2642.0,2641.6,2.96854518]
[1730261409650,0.39522956,2642.0,2641.6,2.96854518]
[1730261409852,0.39522956,2642.0,2641.6,6.75412518]
[1730261410067,0.39522956,2642.0,2641.7,1.13266386]
[1730261411987,4.18025956,2642.0,2641.7,1.13266386]
[1730261412282,0.39522956,2642.0,2641.6,6.75411518]
[1730261412496,0.39522956,2642.0,2641.9,4.61765]
[1730261412723,0.39522956,2642.0,2641.9,4.69334402]
[1730261412853,3.78438,2642.5,2642.0,4.61742]
[1730261413052,0.39524017,2642.5,2642.1,5.27017519]
[1730261413304,0.39524017,2642.5,2642.3,2.31783519]
[1730261414965,3.78382,2642.9,2642.4,3.78443]
[1730261415173,3.78382,2642.9,2642.6,1.48533519]
[1730261416300,3.7838,2642.9,2642.6,1.48533519]
[1730261416456,3.7838,2642.9,2642.4,5.26968519]
[1730261417767,3.78387,2642.8,2642.4,5.26968519]
[1730261417957,0.39521095,2643.0,2642.5,4.40204684]
[1730261417958,4.17879095,2643.0,2642.5,4.40204684]
[1730261418221,3.78374,2642.9,2642.5,0.61778684]
[1730261419059,3.78374,2642.9,2642.6,1.48533519]
[1730261421278,4.56983,2643.1,2642.7,0.7954]
[1730261421489,0.7864,2643.1,2642.7,0.7954]
[1730261421692,0.7864,2643.1,2642.7,4.5794]
[1730261422366,0.7864,2643.1,2642.8,3.78386]
[1730261422709,0.39519952,2643.4,2643.0,1.48533519]
[1730261422907,4.17822952,2643.4,2643.0,1.48533519]
[1730261423469,4.17822952,2643.4,2642.9,3.78363]
[1730261425868,7.96131952,2643.4,2642.9,3.78363]
[1730261426070,7.96132952,2643.4,2642.9,3.78363]
[1730261426300,4.17822952,2643.4,2642.9,3.78363]
[1730261427706,3.78316,2643.3,2642.8,6.26161231]
[1730261429411,3.78316,2643.3,2642.8,6.26155231]
[1730261430979,0.39519952,2643.4,2642.9,3.78368]
[1730261431175,4.17823952,2643.4,2642.9,3.78368]
[1730261431375,4.17823952,2643.4,2642.8,6.26154231]
[1730261432120,4.17823952,2643.4,2642.9,3.78371]
[1730261432316,4.17823952,2643.4,2643.0,0.7973]
[1730261434714,3.78315,2643.3,2643.0,0.7973]
[1730261435504,7.5664,2643.3,2643.0,0.7973]
[1730261435827,7.5664,2643.3,2642.8,0.7973]
[1730261436178,3.78372,2642.9,2642.5,0.7973]
[1730261436524,3.78389,2642.8,2642.5,0.7973]
[1730261437176,0.8205,2642.7,2642.1,2.28263519]
[1730261437388,3.78436,2642.5,2642.1,0.7973]
[1730261437710,0.8205,2642.4,2642.0,3.7849]
[1730261438593,4.60501,2642.4,2641.8,4.58258]
[1730261438917,4.60501,2642.4,2641.8,4.58248]
[1730261439216,4.60501,2642.4,2641.8,8.36769]
[1730261439428,4.60501,2642.4,2641.8,4.58248]
[1730261439783,3.78463,2642.3,2641.8,4.58248]
[1730261440016,3.78463,2642.3,2641.8,6.06781519]
[1730261440205,8.38955,2642.4,2641.8,6.06781519]
[1730261441316,4.60501,2642.4,2641.8,9.85302519]
[1730261441525,3.78423,2642.6,2642.1,3.78474]
[1730261441820,4.60473,2642.6,2642.1,3.78474]
[1730261443619,0.8205,2642.6,2642.1,3.78474]
[1730261444733,0.8205,2642.6,2642.2,3.78472]
[1730261445045,0.8205,2642.6,2642.2,6.06735519]
[1730261445242,0.8205,2642.6,2642.2,4.58202]
[1730261445398,0.8205,2642.6,2642.2,0.7973]
[1730261446151,3.7843,2642.5,2641.9,7.57009]
[1730261446439,4.59156,2642.4,2641.9,7.57007]
[1730261446614,4.59156,2642.4,2641.9,7.57009]
[1730261446813,4.59156,2642.4,2641.9,7.57008]
[1730261447138,0.8071,2642.4,2641.9,3.78502]
[1730261447322,0.8071,2642.4,2642.0,3.78496]
[1730261447522,0.8071,2642.4,2641.9,3.78502]
[1730261447877,0.8071,2642.4,2642.0,3.78501]
[1730261448635,0.8071,2642.4,2641.9,4.44058577]
[1730261448842,0.8071,2642.4,2641.9,8.22565577]
[1730261449041,0.8071,2642.4,2641.6,3.7872]
[1730261449042,3.78461,2642.3,2641.6,3.7872]
[1730261449208,3.78462,2642.3,2641.8,3.78528]
[1730261449536,3.78462,2642.3,2641.8,5.27061519]
[1730261450096,0.8071,2642.4,2641.9,3.78515]
[1730261450507,3.78459,2642.3,2641.8,4.76960652]
[1730261450709,3.78459,2642.3,2641.8,9.05584519]
[1730261450928,3.78459,2642.3,2641.8,5.27055519]
[1730261451515,3.78459,2642.3,2641.8,9.05577519]
[1730261451741,3.78459,2642.3,2641.8,5.27055519]
[1730261458176,4.98677181,2642.4,2641.9,3.78505]
[1730261459879,1.20233181,2642.4,2642.1,3.78485]
[1730261460042,0.39523181,2642.4,2642.1,3.78485]
[1730261460455,0.39523181,2642.4,2642.0,6.05746519]
[1730261461182,0.39523181,2642.4,2642.0,9.84236519]
[1730261461341,0.39523181,2642.4,2642.1,1.07479257]
[1730261464091,0.39523181,2642.4,2642.0,4.5721]
[1730261464254,0.39523181,2642.4,2642.0,8.35703]
[1730261464454,0.39523181,2642.4,2642.0,4.5721]
[1730261464658,0.39523181,2642.4,2642.0,9.84237519]
[1730261464999,0.39523181,2642.4,2642.0,6.05743519]
[1730261465145,0.39523181,2642.4,2642.1,0.60574352]
[1730261468389,0.39523181,2642.4,2642.0,6.05742519]
[1730261468594,4.17973181,2642.4,2641.9,3.78515]
[1730261468750,4.17973181,2642.4,2641.8,4.58542]
[1730261468956,4.17973181,2642.4,2641.9,3.78507]
[1730261469165,0.39523181,2642.4,2641.9,5.27048519]
[1730261469370,0.39523181,2642.4,2641.9,6.25607571]
[1730261469589,0.39523181,2642.4,2642.0,3.785]
[1730261469795,0.39523181,2642.4,2642.3,0.8002]
[1730261469954,0.39523181,2642.4,2642.3,6.07011519]
[1730261470293,0.8321,2642.9,2642.5,3.78415]
[1730261470492,3.78338,2643.2,2642.5,3.78415]
[1730261470493,0.39518261,2642.8,2642.7,3.78399]
[1730261470845,0.39518261,2642.8,2642.7,4.58419]
[1730261471051,0.39518261,2642.8,2642.7,4.65986411]
[1730261471250,0.39518261,2642.8,2642.7,4.58419]
[1730261471493,4.61532,2643.3,2642.7,5.60739702]
[1730261471892,4.61532,2643.3,2642.8,1.48533519]
[1730261472563,0.8321,2643.3,2642.8,1.48533519]
[1730261472954,4.61528,2643.3,2642.8,1.48533519]
[1730261474466,0.8321,2643.3,2642.9,3.78371]
[1730261474805,0.39516827,2643.4,2643.2,5.26854519]
[1730261474959,0.39516827,2643.4,2643.3,3.78314]
[1730261479697,0.39516827,2643.4,2643.0,0.52690452]
[1730261480009,0.39516827,2643.4,2642.9,6.06915519]
[1730261480705,0.8321,2643.3,2642.9,6.7837]
[1730261481290,0.8321,2643.3,2642.9,10.56733]
[1730261481509,0.8321,2643.3,2643.0,3.78357]
[1730261483684,0.8321,2643.3,2642.9,3.78369]
[1730261483908,0.8321,2643.3,2642.9,4.2643797]
[1730261484122,0.8321,2643.3,2643.0,3.78356]
[1730261486806,0.8321,2643.3,2643.0,7.56705]
[1730261487226,0.8321,2643.3,2643.0,3.78349]
[1730261488203,0.8321,2643.3,2643.0,7.56699]
[1730261488404,0.8321,2643.3,2643.0,8.82029149]
[1730261488814,0.8321,2643.3,2643.1,3.78342]
[1730261491839,0.8321,2643.3,2643.0,5.03679149]
[1730261492196,0.8321,2643.3,2643.0,7.56699]
[1730261492601,0.8321,2643.3,2643.1,3.78341]
[1730261493064,0.8321,2643.3,2643.0,3.78349]
[1730261493736,0.8321,2643.3,2643.0,7.56698]
[1730261493939,0.8321,2643.3,2643.0,3.78349]
[1730261494783,0.8321,2643.3,2643.0,7.56694]
[1730261495071,0.8321,2643.3,2643.1,4.58817297]
[1730261495852,0.8321,2643.3,2643.1,0.80476297]
[1730261496059,0.8321,2643.3,2643.0,3.78345]
[1730261497079,0.8321,2643.3,2642.9,4.2643997]
[1730261497775,0.8321,2643.3,2642.6,0.8002]
[1730261497962,0.8201,2643.1,2642.4,3.78433]
[1730261498273,1.48533519,2643.2,2642.4,3.78433]
[1730261498274,4.60375,2643.0,2642.4,3.78433]
[1730261498475,8.38743,2643.0,2642.4,3.78433]
[1730261498688,4.60375,2643.0,2642.5,3.78427]
[1730261498873,0.8201,2643.0,2642.6,3.78412]
[1730261499576,4.60369,2643.0,2642.6,3.78412]
[1730261499741,4.60369,2643.0,2642.5,3.78429]
[1730261500080,8.3874,2643.0,2642.4,3.78433]
[1730261500264,0.8201,2642.9,2642.4,3.78433]
[1730261500436,0.8201,2642.9,2642.4,4.68976052]
[1730261500651,0.8201,2642.9,2642.4,8.47409052]
[1730261500863,4.60389,2642.9,2642.4,4.68976052]
[1730261501076,4.60389,2642.9,2642.4,3.78433]
[1730261502188,4.60414,2642.7,2642.2,3.78465]
[1730261502751,4.60414,2642.7,2642.0,3.78493]
[1730261502752,3.78415,2642.6,2642.0,7.56979]
[1730261502954,3.78415,2642.6,2642.1,3.78484]
[1730261503275,0.8201,2642.5,2642.1,3.78479]
[1730261504100,3.78445,2642.4,2642.0,3.78486]
[1730261504396,0.8201,2642.4,2642.0,3.785]
[1730261505498,4.60456,2642.4,2641.9,3.78515]
[1730261505669,4.60456,2642.4,2641.6,3.0]
[1730261505670,0.8039,2642.3,2641.6,3.7855]
[1730261505859,0.8039,2642.1,2641.7,3.78541]
[1730261507691,4.58881,2642.1,2641.5,3.78562]
[1730261507993,4.58881,2642.1,2641.6,3.78551]
[1730261508601,4.58881,2642.1,2641.7,3.78541]
[1730261508602,0.8039,2642.1,2641.7,3.78541]
[1730261509009,0.8039,2642.1,2641.6,3.78551]
[1730261509219,0.8039,2642.1,2641.6,7.571]
[1730261510744,0.8039,2642.1,2641.7,3.78536]
[1730261513159,0.8039,2642.3,2641.8,5.27059519]
[1730261513357,0.8039,2642.3,2641.9,3.78513]
[1730261514059,1.19917094,2642.3,2641.8,5.27059519]
[1730261514219,1.19917094,2642.3,2641.9,3.78514]
[1730261516041,1.19917094,2642.3,2642.0,3.78499]
[1730261516253,1.19917094,2642.3,2642.0,4.69053652]
[1730261516624,1.19917094,2642.3,2642.0,0.90554652]
[1730261516821,1.19917094,2642.3,2641.9,3.78514]
[1730261522065,1.19917094,2642.3,2641.9,3.78508]
[1730261522264,1.19917094,2642.3,2642.0,3.78501]
[1730261522584,1.19917094,2642.3,2642.0,3.785]
[1730261522744,1.19917094,2642.3,2641.9,3.78508]
[1730261523043,1.19917094,2642.3,2642.0,0.52704152]
[1730261523643,4.98376094,2642.3,2642.0,0.52704152]
[1730261523876,4.98376094,2642.3,2641.8,3.78529]
[1730261530368,8.76845094,2642.3,2641.8,3.78529]
[1730261531214,4.98376094,2642.3,2641.8,3.78529]
[1730261531711,3.78489,2642.1,2641.7,4.69664593]
[1730261532006,3.78489,2642.1,2641.7,0.91129593]
[1730261534277,3.78472,2642.2,2641.7,4.69671593]
[1730261534474,3.78486,2642.1,2641.7,4.69671593]
[1730261535076,3.78486,2642.1,2641.7,0.91129593]
[1730261535375,0.7804,2642.0,2641.6,5.27091519]
[1730261537617,0.7804,2642.0,2641.7,3.7854]
[1730261539007,1.17567094,2642.3,2641.8,2.31123519]
[1730261539317,0.39527094,2642.3,2642.0,3.7849]
[1730261540016,0.39527094,2642.3,2642.0,5.27023519]
[1730261540331,0.39527094,2642.3,2642.0,6.26591917]
[1730261540618,4.56478,2642.5,2642.0,6.26591917]
[1730261541319,4.56478,2642.5,2642.2,0.8259]
[1730261541320,0.7804,2642.5,2642.2,0.8259]
[1730261541500,0.7804,2642.5,2642.2,4.61058]
[1730261541705,0.7804,2642.5,2642.2,5.70578438]
[1730261542497,0.7804,2642.5,2642.2,5.70574438]
[1730261542849,0.39524464,2642.8,2642.3,3.7845]
[1730261542850,0.7804,2642.7,2642.3,3.7845]
[1730261543699,0.7804,2642.7,2642.4,3.78436]
[1730261543929,0.7804,2642.7,2642.5,3.78419]
[1730261544337,0.7804,2642.7,2642.4,3.78436]
[1730261544507,0.7804,2642.9,2642.5,3.78426]
[1730261544928,0.7804,2642.9,2642.4,4.9605923]
[1730261545101,4.56421,2642.9,2642.4,4.9605923]
[1730261545509,4.56421,2642.9,2642.4,3.78436]
[1730261547415,0.7804,2642.7,2642.3,0.78690341]
[1730261547614,0.7804,2642.7,2642.2,4.57151341]
[1730261547615,8.3485,2642.7,2642.2,4.57151341]
[1730261547815,8.3485,2642.7,2642.1,1.18035512]
[1730261547816,4.56456,2642.6,2642.1,4.57173341]
[1730261548542,0.7804,2642.6,2642.2,3.78461]
[1730261548841,0.7804,2642.6,2642.2,4.57151341]
[1730261549146,0.7804,2642.6,2642.2,5.67372478]
[1730261549451,0.7804,2642.6,2642.2,4.88682137]
[1730261549756,0.7804,2642.6,2642.2,5.67372478]
[1730261550048,0.7804,2642.6,2642.2,4.88682137]
[1730261550959,0.7804,2642.6,2642.2,8.67146137]
[1730261551518,0.7804,2642.6,2642.2,4.88682137]
[1730261552030,0.7804,2642.6,2642.2,3.78461]
[1730261552269,0.8027,2642.9,2642.4,5.26967519]
[1730261552565,0.8027,2642.9,2642.6,3.78411]
[1730261552727,0.8027,2642.9,2642.7,3.78397]
[1730261552925,0.8027,2642.9,2642.6,3.78411]
[1730261554873,0.8027,2642.9,2642.4,0.78690341]
[1730261555173,0.8027,2642.8,2642.2,4.57152341]
[1730261555371,5.72769019,2642.9,2642.2,4.57152341]
[1730261555372,0.8027,2642.7,2642.2,4.57152341]
[1730261555532,4.58673,2642.7,2642.2,4.57152341]
[1730261555727,3.78403,2642.7,2642.2,4.57152341]
[1730261555940,0.8027,2642.6,2642.2,3.78462]
[1730261557466,0.8027,2642.6,2641.9,4.57205341]
[1730261557467,0.8027,2642.4,2641.9,4.57205341]
[1730261557641,0.8027,2642.3,2641.9,0.78690341]
[1730261557842,0.8027,2642.3,2641.8,8.35733341]
[1730261558089,0.8027,2642.3,2641.8,4.57211341]
[1730261558248,0.8027,2642.2,2641.8,4.57211341]
[1730261558450,0.8027,2642.2,2641.8,3.78521]
[1730261559779,0.8027,2642.2,2641.8,7.57043]
[1730261560282,0.8027,2642.2,2641.8,7.57042]
[1730261560858,0.8027,2642.2,2641.8,3.78521]
[1730261561342,1.73844725,2642.2,2641.8,3.78521]
[1730261562148,1.73844725,2642.2,2641.7,0.78690341]
[1730261562490,1.73844725,2642.2,2641.7,3.78541]
[1730261562491,4.58742,2642.2,2641.7,3.78541]
[1730261562785,0.8027,2642.2,2641.8,3.7852]
[1730261562960,0.8027,2642.2,2641.9,3.78501]
[1730261563583,0.8027,2642.4,2642.0,3.78491]
[1730261564493,4.5872,2642.4,2641.8,9.18987341]
[1730261564658,1.72524526,2642.4,2641.9,3.78503]
[1730261564998,0.8027,2642.4,2641.9,3.78503]
[1730261566300,0.8027,2642.4,2642.0,3.78492]
[1730261567367,0.8027,2642.4,2642.1,3.78482]
[1730261576696,0.8027,2642.4,2642.0,3.785]
[1730261577213,0.8027,2642.4,2642.1,3.78485]
[1730261577978,0.8027,2642.4,2642.1,7.56963]
[1730261578180,0.8027,2642.4,2642.2,3.78471]
[1730261578378,0.8027,2642.4,2642.1,3.78478]
[1730261580910,0.8027,2642.4,2642.2,3.78468]
[1730261581273,0.8027,2642.4,2642.1,3.78478]
[1730261581612,0.3952596,2642.5,2642.2,3.78472]
[1730261582288,0.3952596,2642.5,2642.1,4.39053186]
[1730261582678,0.3952596,2642.5,2642.2,3.78469]
[1730261583490,0.3952596,2642.5,2642.1,1.39260527]
[1730261583676,0.3952596,2642.5,2642.1,5.17742527]
[1730261583876,0.3952596,2642.5,2642.2,0.89622953]
[1730261584375,0.3952596,2642.5,2642.2,4.68088953]
[1730261584976,0.3952596,2642.5,2642.1,4.57172341]
[1730261585223,4.1795596,2642.5,2642.1,4.57172341]
[1730261585989,0.8007,2642.3,2642.0,0.78690341]
[1730261586693,1.19595629,2642.3,2641.9,4.57197341]
[1730261586881,4.98055629,2642.3,2641.9,4.57197341]
[1730261587334,4.17985629,2642.3,2641.8,0.78690341]
[1730261587539,4.17985629,2642.3,2641.7,4.96566512]
[1730261587540,0.8007,2642.2,2641.9,0.78690341]
[1730261587722,0.8007,2642.2,2641.7,4.96566512]
[1730261587723,0.8007,2642.2,2641.8,0.78690341]
[1730261588101,0.8007,2642.2,2641.8,4.57216341]
[1730261588328,4.58543,2642.2,2641.7,4.57221341]
[1730261588865,0.8007,2642.1,2641.7,4.57221341]
[1730261591315,0.8007,2642.1,2641.8,3.78522]
[1730261591516,0.8007,2642.1,2641.9,3.78506]
[1730261593111,0.8007,2642.1,2641.8,4.57212341]
[1730261593454,0.8007,2642.1,2642.0,3.78501]
[1730261593652,0.39525629,2642.3,2642.1,3.78486]
[1730261596350,0.39525629,2642.3,2642.0,4.57191341]
[1730261596563,0.39525629,2642.3,2642.0,3.78491]
[1730261599255,0.39525629,2642.3,2642.0,4.57181341]
[1730261599837,0.39525629,2642.3,2642.0,3.78491]
[1730261600050,0.39525629,2642.3,2641.9,4.57202341]
[1730261600756,0.8007,2642.2,2641.9,0.78690341]
[1730261602358,0.8007,2642.2,2642.0,0.78690341]
[1730261605153,0.8007,2642.2,2641.9,0.78690341]
[1730261606084,4.58551,2642.2,2641.9,0.78690341]
[1730261608706,5.46205163,2642.2,2641.9,0.78690341]
[1730261609388,5.46205163,2642.2,2641.8,0.78690341]
[1730261610158,0.7989,2642.1,2641.8,0.78690341]
[1730261610759,1.19417898,2642.1,2641.8,0.78690341]
[1730261620305,1.19417898,2642.1,2641.7,0.78690341]
[1730261621512,4.97909898,2642.1,2641.7,0.78690341]
[1730261625985,1.19417898,2642.1,2641.7,4.57233341]
[1730261626792,0.39527898,2642.1,2641.8,4.57219341]
[1730261627220,0.39527898,2642.1,2641.8,0.78690341]
[1730261635041,0.39527898,2642.1,2641.9,0.78690341]
[1730261635821,0.39527898,2642.1,2641.8,0.78690341]
[1730261640460,0.7626,2642.0,2641.8,0.78690341]
[1730261640758,0.7626,2642.0,2641.7,0.78690341]
[1730261641365,4.54763,2642.0,2641.7,0.78690341]
[1730261642161,0.7626,2642.0,2641.7,0.78690341]
[1730261645024,0.39527898,2642.1,2641.8,4.57219341]
[1730261646026,0.39527898,2642.1,2641.8,0.78690341]
[1730261649947,0.39527898,2642.1,2641.8,4.57219341]
[1730261651268,0.39527898,2642.1,2641.8,0.78690341]
[1730261651870,0.39527898,2642.1,2641.9,0.78690341]
[1730261652037,0.39527898,2642.1,2641.8,4.57218341]
[1730261652440,0.39527898,2642.1,2641.9,0.78690341]
[1730261663608,4.18014898,2642.1,2641.8,0.78690341]
[1730261664123,4.18014898,2642.1,2641.9,0.78690341]
[1730261664915,0.39527898,2642.1,2641.9,0.78690341]
[1730261665787,0.39527898,2642.1,2641.9,0.78607027]
[1730261674827,3.78501,2642.0,2641.9,0.78607027]
[1730261675498,4.18021898,2642.1,2641.7,1.18035512]
[1730261675701,7.96521898,2642.1,2641.9,0.78921483]
[1730261676101,3.78501,2642.0,2641.9,0.78921483]
[1730261676929,4.18021898,2642.1,2641.9,0.78921483]
[1730261677091,0.4942819,2642.0,2641.9,0.78921483]
[1730261677618,4.18021898,2642.1,2641.9,0.78921483]
[1730261679440,0.39527898,2642.1,2641.9,0.78921483]
[1730261680097,4.54731,2642.0,2641.9,0.78921483]
[1730261680344,3.78515,2641.9,2641.7,0.78921483]
[1730261680553,7.57043,2641.9,2641.7,0.78921483]
[1730261680841,0.833273,2641.8,2641.7,0.78921483]
[1730261681011,0.833273,2641.8,2641.5,0.78921483]
[1730261681012,4.618563,2641.8,2641.5,0.78921483]
[1730261681218,4.54788,2641.6,2641.5,0.78921483]
[1730261681542,4.54788,2641.6,2641.4,0.78921483]
[1730261681833,4.619054,2641.5,2641.3,0.84599552]
[1730261682426,3.78587,2641.4,2641.3,0.05678069]
[1730261683015,4.619054,2641.5,2641.3,0.05678069]
[1730261686639,0.785,2641.4,2641.3,0.05678069]
[1730261686806,0.785,2641.4,2641.0,0.78921483]
[1730261687012,4.57095,2641.4,2640.9,0.78921483]
[1730261687449,4.57095,2641.4,2640.9,4.57572483]
[1730261687650,5.63848392,2641.4,2640.9,3.78651]
[1730261687943,1.85253392,2641.4,2640.9,3.78651]
[1730261688146,1.85253392,2641.4,2640.9,4.57572483]
[1730261688358,1.85253392,2641.4,2640.9,3.78651]
[1730261690320,0.785,2641.4,2640.9,3.78651]
[1730261690912,4.5709,2641.4,2640.9,3.78651]
[1730261694151,4.57059,2641.6,2641.1,4.58327]
[1730261694355,8.35626,2641.6,2641.1,4.58327]
[1730261694742,3.78573,2641.5,2641.1,4.58327]
[1730261694916,3.78573,2641.5,2641.1,0.797]
[1730261695726,4.57059,2641.6,2641.1,0.797]
[1730261696421,3.7858,2641.5,2641.1,0.797]
[1730261696622,4.57059,2641.6,2641.1,4.5832]
[1730261698118,0.39530519,2641.5,2641.1,4.5832]
[1730261698752,0.39530519,2641.5,2641.1,0.797]
[1730261699757,0.39530519,2641.5,2641.1,4.58322]
[1730261700625,4.18102519,2641.5,2641.1,0.797]
[1730261700818,0.39530519,2641.5,2641.1,4.58321]
[1730261701829,4.18103519,2641.5,2641.1,4.58321]
[1730261702959,0.39530519,2641.5,2641.1,4.58321]
[1730261704262,4.18103519,2641.5,2641.1,4.58321]
[1730261704423,0.39530519,2641.5,2641.1,4.58321]
[1730261706051,0.39530519,2641.5,2641.1,0.797]
[1730261706254,4.67767371,2641.5,2641.1,0.797]
[1730261706672,0.89189371,2641.5,2641.1,0.797]
[1730261706964,0.39530519,2641.5,2641.1,4.58321]
[1730261707463,0.39530519,2641.5,2641.1,0.797]
[1730261707758,0.39530519,2641.5,2641.1,4.58323]
[1730261708673,4.18105519,2641.5,2641.1,0.797]
[1730261709165,0.39530519,2641.5,2641.1,4.58327]
[1730261709522,4.18105519,2641.5,2641.1,0.797]
[1730261709836,3.78615,2641.3,2640.9,0.8232]
[1730261710549,0.769,2641.3,2640.9,0.8232]
[1730261710731,3.78624,2641.2,2640.7,4.61007]
[1730261711425,3.78624,2641.2,2640.7,5.39928483]
[1730261711624,4.67001835,2641.2,2640.7,4.61007]
[1730261711827,4.67001835,2641.2,2640.7,5.39928483]
[1730261712237,4.67001835,2641.2,2640.7,4.61007]
[1730261712559,4.67001835,2641.2,2640.7,5.39928483]
[1730261713122,4.67001835,2641.2,2640.7,4.61007]
[1730261713425,0.54390184,2641.1,2640.7,4.61007]
[1730261714247,4.33023184,2641.1,2640.7,0.8232]
[1730261714846,0.54390184,2641.1,2640.7,0.8232]
[1730261715075,4.33027184,2641.1,2640.7,0.8232]
[1730261715771,4.33027184,2641.1,2640.5,8.53450815]
[1730261715986,3.78645,2641.0,2640.5,8.53450815]
[1730261716142,4.59810918,2641.0,2640.5,8.53450815]
[1730261716341,4.59810918,2641.0,2640.5,6.25995813]
[1730261716342,0.8068,2640.9,2640.5,6.25995813]
[1730261718674,0.8068,2640.9,2640.5,2.47287813]
[1730261718926,0.8068,2640.9,2640.5,0.7573]
[1730261719210,0.8068,2640.9,2640.5,4.54442]
[1730261719419,1.34729092,2640.9,2640.5,4.54442]
[1730261721203,1.34729092,2640.9,2640.5,3.78712]
[1730261723421,0.8068,2640.9,2640.5,3.78712]
[1730261725083,4.59339,2640.9,2640.5,3.78712]